fUST/lending_fUST_20240909
["ID","MTS","AMOUNT","RATE_DAILY","PERIOD"]
[337593223,1725875443532,-500.0,0.00038356,30]
[337593224,1725875443542,-500.0,0.00038356,30]
[337593225,1725875443552,-500.0,0.00038356,30]
[337593226,1725875443562,-500.0,0.00038356,30]
[337593227,1725875443573,-500.0,0.00038356,30]
[337593228,1725875443583,-500.0,0.00038356,30]
[337593229,1725875443593,-500.0,0.00038356,30]
[337593230,1725875443603,-500.0,0.00038356,30]
[337593231,1725875443613,-1198.04,0.00038356,30]
[337593232,1725875443623,-3344.03,0.00038356,30]
[337593233,1725875443633,-624.39502448,0.00038356,30]
[337593234,1725875443643,-500.0,0.00038356,30]
[337593235,1725875443653,-1584.91,0.00038356,30]
[337593236,1725875443665,-500.0,0.00038356,30]
[337593237,1725875443675,-1108.89,0.00038356,30]
[337593238,1725875443686,-1723.8,0.00038356,30]
[337593239,1725875443697,-2425.31,0.00038356,30]
[337593240,1725875443709,-500.0,0.00038356,30]
[337593241,1725875443719,-597.46422064,0.00038356,30]
[337593242,1725875443729,-500.0,0.00038356,30]
[337593243,1725875443740,-500.0,0.00038356,30]
[337593244,1725875443750,-500.0,0.00038356,30]
[337593245,1725875443760,-505.38564184,0.00038356,30]
[337593246,1725875443770,-1629.13,0.00038356,30]
[337593247,1725875443782,-837.74,0.00038356,30]
[337593248,1725875443793,-1629.13,0.00038356,30]
[337593249,1725875443802,-1629.13,0.00038356,30]
[337593250,1725875443812,-1629.13,0.00038356,30]
[337593251,1725875443823,-1629.13,0.00038356,30]
[337593252,1725875443833,-1629.13,0.00038356,30]
[337593253,1725875443842,-1629.13,0.00038356,30]
[337593254,1725875443851,-500.0,0.00038356,30]
[337593255,1725875443861,-1629.13,0.00038356,30]
[337593256,1725875443871,-1629.13,0.00038356,30]
[337593257,1725875443881,-500.0,0.00038356,30]
[337593258,1725875443891,-500.86179566,0.00038356,30]
[337593259,1725875443901,-1629.13,0.00038356,30]
[337593260,1725875443911,-1629.13,0.00038356,30]
[337593261,1725875443921,-1629.13,0.00038356,30]
[337593262,1725875443932,-1629.13,0.00038356,30]
[337593263,1725875443943,-4147.6,0.00038356,30]
[337593264,1725875443953,-1629.13,0.00038356,30]
[337593265,1725875443963,-1389.2,0.00038356,30]
[337593266,1725875443973,-1208.94,0.00038356,30]
[337593267,1725875443983,-1629.13,0.00038356,30]
[337593268,1725875443993,-4260.23,0.00038356,30]
[337593269,1725875444004,-1629.13,0.00038356,30]
[337593270,1725875444014,-1629.13,0.00038356,30]
[337593271,1725875444024,-1629.13,0.00038356,30]
[337593272,1725875444035,-1629.13,0.00038356,30]
[337593273,1725875444045,-1629.13,0.00038356,30]
[337593274,1725875444056,-1629.13,0.00038356,30]
[337593275,1725875444066,-500.0,0.00038356,30]
[337593276,1725875444076,-1629.13,0.00038356,30]
[337593277,1725875444086,-1629.13,0.00038356,30]
[337593278,1725875444096,-1629.23187796,0.00038356,30]
[337593279,1725875444106,-500.0,0.00038356,30]
[337593280,1725875444115,-500.0,0.00038356,30]
[337593281,1725875444124,-1032.1,0.00038356,30]
[337593282,1725875444135,-1615.92,0.00038356,30]
[337593283,1725875444148,-1565.33,0.00038356,30]
[337593284,1725875444160,-500.0,0.00038356,30]
[337593285,1725875444169,-500.0,0.00038356,30]
[337593286,1725875444179,-500.0,0.00038356,30]
[337593287,1725875444190,-500.87711517,0.00038356,30]
[337593288,1725875444199,-625.01165026,0.00038356,30]
[337593289,1725875444209,-500.0,0.00038356,30]
[337593290,1725875444220,-707.11,0.00038356,30]
[337593291,1725875444230,-1684.99,0.00038356,30]
[337593292,1725875444240,-1026.64,0.00038356,30]
[337593293,1725875444249,-1067.14,0.00038356,30]
[337593294,1725875444259,-500.0,0.00038356,30]
[337593295,1725875444269,-500.0,0.00038356,30]
[337593296,1725875444279,-1096.66,0.00038356,30]
[337593297,1725875444289,-695.38,0.00038356,30]
[337593298,1725875444299,-8606.67,0.00038356,30]
[337593299,1725875444308,-500.0,0.00038356,30]
[337593300,1725875444318,-712.79,0.00038356,30]
[337593301,1725875444327,-500.0,0.00038356,30]
[337593302,1725875444337,-500.0,0.00038356,30]
[337593303,1725875444347,-503.01378336,0.00038356,30]
[337593304,1725875444357,-748.39,0.00038356,30]
[337593305,1725875444367,-1145.13,0.00038356,30]
[337593306,1725875444377,-2011.46,0.00038356,30]
[337593307,1725875444387,-500.0,0.00038356,30]
[337593308,1725875444397,-1549.17,0.00038356,30]
[337593309,1725875444408,-1381.29,0.00038356,30]
[337593310,1725875444418,-722.15,0.00038356,30]
[337593311,1725875444427,-859.21,0.00038356,30]
[337593312,1725875444437,-500.0,0.00038356,30]
[337593313,1725875444446,-500.0,0.00038356,30]
[337593314,1725875444455,-500.0,0.00038356,30]
[337593315,1725875444465,-500.0,0.00038356,30]
[337593316,1725875444474,-650.68,0.00038356,30]
[337593317,1725875444485,-500.0,0.00038356,30]
[337593318,1725875444494,-807.78,0.00038356,30]
[337593319,1725875444504,-408.2097917,0.00038356,30]
[337593320,1725875444514,-501.39097544,0.00038356,30]
[337593321,1725875444525,-505.20000706,0.00038356,30]
[337593322,1725875444534,-1882.7,0.00038356,30]
[337593323,1725875444544,-2032.16,0.00038356,30]
[337593324,1725875444554,-1848.23,0.00038356,30]
[337593325,1725875444565,-500.0,0.00038356,30]
[337593326,1725875444575,-500.0,0.00038356,30]
[337593327,1725875444585,-1093.82,0.00038356,30]
[337593328,1725875444594,-500.0,0.00038356,30]
[337593329,1725875444605,-500.0,0.00038356,30]
[337593330,1725875444617,-500.0,0.00038356,30]
[337593331,1725875444628,-812.76,0.00038356,30]
[337593332,1725875444638,-548.41,0.00038356,30]
[337593333,1725875444648,-500.0,0.00038356,30]
[337593334,1725875444658,-500.0,0.00038356,30]
[337593335,1725875444668,-500.0,0.00038356,30]
[337593336,1725875444677,-754.68,0.00038356,30]
[337593337,1725875444846,-502.46728596,0.00038356,30]
[337593338,1725875444856,-1809.12,0.00038356,30]
[337593339,1725875444866,-500.0,0.00038356,30]
[337593340,1725875444875,-744.09,0.00038356,30]
[337593341,1725875444884,-1052.1,0.00038356,30]
[337593342,1725875444893,-32631.01,0.00038356,18]
[337593343,1725875444902,-502.16095731,0.00038356,30]
[337593344,1725875444911,-718.59,0.00038356,30]
[337593345,1725875444920,-500.0,0.00038356,30]
[337593346,1725875444929,-84278.99,0.00038356,30]
[337593347,1725875444940,-335.27202658,0.00038356,30]
[337593348,1725875444949,-501.73824365,0.00038356,30]
[337593349,1725875444958,-500.0,0.00038356,30]
[337593350,1725875444967,-2007.96,0.00038356,30]
[337593351,1725875444976,-500.0,0.00038356,30]
[337593352,1725875444985,-903.52,0.00038356,30]
[337593353,1725875444994,-545.43,0.00038356,30]
[337593354,1725875445003,-500.0,0.00038356,30]
[337593355,1725875445012,-501.99373175,0.00038356,30]
[337593356,1725875445021,-1259.55,0.00038356,30]
[337593357,1725875445030,-508.52349011,0.00038356,30]
[337593358,1725875445039,-2487.04,0.00038356,30]
[337593359,1725875445048,-81.0827767,0.00038356,30]
[337593362,1725875445682,-199.18265403,0.00038356,30]
[337593370,1725875446206,-219.73456927,0.00038356,30]
[337593371,1725875446217,-501.04688144,0.00038356,30]
[337593372,1725875446228,-500.0,0.00038356,30]
[337593373,1725875446238,-500.0,0.00038356,30]
[337593374,1725875446249,-151.0,0.00038356,14]
[337593375,1725875446259,-500.0,0.00038356,2]
[337593376,1725875446269,-500.0,0.00038356,2]
[337593377,1725875446279,-354.54309633,0.00038356,2]
[337593378,1725875446288,-500.0,0.00038356,30]
[337593379,1725875446297,-500.0,0.00038356,30]
[337593380,1725875446306,-500.0,0.00038356,30]
[337593381,1725875446316,-1928.66243143,0.00038356,30]
[337593382,1725875446833,-31.66317935,0.00038356,30]
[337593383,1725875448980,-223.81438922,0.00038356,30]
[337593384,1725875448990,-287.47311274,0.00038356,30]
[337593385,1725875448999,-500.4463617,0.00038356,30]
[337593386,1725875449008,-15333.85795895,0.00038356,30]
[337593394,1725875762063,4374.1,0.0003002,2]
[337593396,1725875827430,-168.340793,0.00034383,2]
[337593397,1725875827454,-168.340793,0.00034383,120]
[337593398,1725875827478,-60.818414,0.00035686,2]
[337593431,1725876555107,-500.0,0.00035686,2]
[337593432,1725876555130,-168.8142258,0.00035846,2]
[337593460,1725876632148,-222.0,0.00037972,2]
[337593461,1725876632158,-54.1028353,0.00037972,2]
[337593462,1725876632171,-2570.19378055,0.00037972,2]
[337593469,1725876637949,-418.41,0.00037962,3]
[337593470,1725876637959,-634.17125513,0.00037971,15]
[337593471,1725876637969,-500.0,0.00037971,15]
[337593472,1725876637978,-500.0,0.00037971,7]
[337593473,1725876637988,-500.0,0.00037971,15]
[337593474,1725876637997,-500.0,0.00037971,7]
[337593475,1725876638007,-500.0,0.00037971,15]
[337593476,1725876638017,-500.0,0.00037971,7]
[337593477,1725876638033,-500.0,0.00037971,7]
[337593478,1725876638043,-457.72527562,0.00037971,15]
[337593479,1725876638052,-500.0,0.00037971,7]
[337593480,1725876638062,-371.70346534,0.00037971,15]
[337593481,1725876638073,-500.0,0.00037971,7]
[337593482,1725876638085,-500.0,0.00037971,7]
[337593483,1725876638095,-500.0,0.00037971,7]
[337593484,1725876638105,-500.0,0.00037971,7]
[337593485,1725876638114,-500.0,0.00037971,7]
[337593486,1725876638124,-500.0,0.00037971,7]
[337593487,1725876638134,-500.0,0.00037971,7]
[337593488,1725876638144,-500.0,0.00037971,7]
[337593489,1725876638155,-500.0,0.00037971,7]
[337593490,1725876638166,-500.0,0.00037971,7]
[337593491,1725876638176,-500.0,0.00037971,7]
[337593492,1725876638186,-500.0,0.00037971,7]
[337593493,1725876638195,-500.0,0.00037971,7]
[337593494,1725876638205,-500.0,0.00037971,7]
[337593495,1725876638214,-500.0,0.00037971,7]
[337593496,1725876638436,-500.0,0.00037971,7]
[337593497,1725876638447,-500.0,0.00037971,7]
[337593498,1725876638458,-500.0,0.00037971,7]
[337593499,1725876638467,-500.0,0.00037971,7]
[337593500,1725876638477,-500.0,0.00037971,7]
[337593501,1725876638487,-500.0,0.00037971,7]
[337593502,1725876638497,-500.0,0.00037971,7]
[337593503,1725876638507,-500.0,0.00037971,7]
[337593504,1725876638516,-500.0,0.00037971,7]
[337593505,1725876638526,-500.0,0.00037971,7]
[337593506,1725876638535,-500.0,0.00037971,7]
[337593507,1725876638545,-500.0,0.00037971,7]
[337593508,1725876638557,-500.0,0.00037971,7]
[337593509,1725876638567,-343.64439318,0.00037971,7]
[337593510,1725876638577,-32332.83506212,0.00037972,2]
[337593511,1725876638607,-82051.22051776,0.00037972,2]
[337593512,1725876638617,-611.45887298,0.00038,2]
[337593513,1725876638626,-209.7105889,0.00038082,2]
[337593514,1725876638636,-153.0,0.00038082,2]
[337593515,1725876638646,-153.0,0.00038082,2]
[337593516,1725876638657,-153.0,0.00038082,2]
[337593517,1725876638668,-150.112233,0.000381,5]
[337593518,1725876638677,-150.0,0.00038131,2]
[337593519,1725876638687,-150.112233,0.000382,10]
[337593520,1725876638696,-616.49790102,0.00038256,2]
[337593521,1725876638706,-3396.03208603,0.00038276,2]
[337593522,1725876638716,-150.112233,0.000383,8]
[337593523,1725876638725,-609.2257424,0.00038335,15]
[337593524,1725876638735,-323.66154604,0.00038335,15]
[337593525,1725876638744,-190.07735988,0.00038335,15]
[337593526,1725876638755,-14799.95255765,0.00038336,4]
[337593535,1725876640111,-1574.5,0.00038336,4]
[337593571,1725876646216,-1614.7819002,0.000379,2]
[337593572,1725876646227,-61650.16726902,0.00038336,4]
[337593658,1725877703223,388.30388316,0.0003,10]
[337593660,1725877723786,1200.03287899,0.0002,2]
[337593661,1725877725161,154.87526698,0.0002,2]
[337593662,1725877725501,12088.69578342,0.000129,2]
[337593663,1725877725967,164.26157189,0.00025,2]
[337593664,1725877725994,227.37566079,0.00025,2]
[337593665,1725877726243,208.89093377,0.00027,2]
[337593667,1725877756187,-1205.66220693,0.0003212,10]
[337593668,1725877756209,-529.1127158,0.00034,5]
[337593669,1725877756231,-225.8609559,0.00035182,2]
[337593670,1725877756253,-260.692771,0.00035221,2]
[337593671,1725877756276,-163.112172,0.00035288,2]
[337593672,1725877756300,-400.0,0.00035335,2]
[337593673,1725877756339,-3481.18665553,0.00035336,2]
[337593674,1725877757311,-20737.94976137,0.00035336,2]
[337593675,1725877757337,-163.112172,0.0003555,2]
[337593676,1725877757361,-163.112172,0.00035813,2]
[337593677,1725877757383,-260.692771,0.00035906,2]
[337593678,1725877757407,-163.112172,0.00036076,2]
[337593679,1725877757430,-163.112172,0.00036338,2]
[337593680,1725877757452,-260.692771,0.00036591,2]
[337593681,1725877757474,-163.112172,0.00036601,2]
[337593682,1725877774130,-163.112172,0.00036864,2]
[337593683,1725877774155,-163.112172,0.00037126,2]
[337593684,1725877774177,-1224.6363176,0.00037434,2]
[337593700,1725877832491,-350.49441059,0.00037434,2]
[337593701,1725877832503,-0.61439343,0.00037434,2]
[337593702,1725877832515,-160.0,0.00037504,2]
[337593703,1725877832525,-844.76267354,0.00037505,2]
[337593704,1725877832536,-3408.9553695,0.00037505,2]
[337593706,1725877838286,-1185.01529471,0.00037505,2]
[337593707,1725877838296,-208.2649181,0.00037534,2]
[337593708,1725877838307,-5438.73333775,0.00037559,2]
[337593709,1725877838318,-208.2649181,0.00037589,2]
[337593710,1725877838328,-208.2649181,0.00037589,2]
[337593711,1725877838341,-207.9849433,0.00037589,2]
[337593712,1725877838353,-221.0,0.00037883,2]
[337593713,1725877838364,-5438.73333776,0.00037883,2]
[337593714,1725877838377,-153.35986811,0.0003789,2]
[337593715,1725877838389,-153.3598681,0.00037927,2]
[337593716,1725877838398,-500.0,0.00037961,15]
[337593717,1725877838409,-228.80220926,0.00037961,15]
[337593718,1725877838419,-500.0,0.00037961,15]
[337593719,1725877838429,-276.90912263,0.00037961,15]
[337593720,1725877838438,-189.35783679,0.00037961,15]
[337593721,1725877838449,-500.0,0.00037961,15]
[337593722,1725877838460,-500.0,0.00037961,15]
[337593723,1725877838473,-500.0,0.00037961,15]
[337593724,1725877838485,-500.0,0.00037961,15]
[337593725,1725877838495,-500.0,0.00037961,15]
[337593727,1725877838505,-275.0,0.00037961,15]
[337593728,1725877838515,-500.0,0.00037961,7]
[337593729,1725877838525,-500.0,0.00037961,7]
[337593730,1725877838788,-500.0,0.00037961,7]
[337593731,1725877838799,-500.0,0.00037961,7]
[337593732,1725877838809,-500.0,0.00037961,7]
[337593733,1725877838819,-500.0,0.00037961,7]
[337593734,1725877838828,-500.0,0.00037961,7]
[337593735,1725877838838,-500.0,0.00037961,7]
[337593736,1725877838848,-500.0,0.00037961,7]
[337593737,1725877838859,-500.0,0.00037961,7]
[337593738,1725877838870,-500.0,0.00037961,7]
[337593739,1725877838879,-408.21873859,0.00037961,7]
[337593740,1725877838889,-500.0,0.00037961,7]
[337593741,1725877838900,-500.0,0.00037961,7]
[337593742,1725877838910,-500.0,0.00037961,7]
[337593743,1725877838921,-500.0,0.00037961,7]
[337593744,1725877838931,-500.0,0.00037961,7]
[337593745,1725877838943,-500.0,0.00037961,7]
[337593746,1725877838953,-500.0,0.00037961,7]
[337593747,1725877838963,-164.16,0.00037962,3]
[337593748,1725877838973,-164.16,0.00037962,3]
[337593749,1725877838983,-256470.847151,0.00037962,4]
[337593750,1725877838993,-5084.95567386,0.00037962,4]
[337593751,1725877839002,-153.3598681,0.00037965,2]
[337593752,1725877839011,-135756.56830968,0.00037972,2]
[337593753,1725877839021,-474.58560368,0.00037972,2]
[337593754,1725877839030,-501.25041749,0.00037973,2]
[337593755,1725877839040,-500.0,0.00037973,5]
[337593756,1725877839049,-500.56999226,0.00037973,5]
[337593757,1725877839058,-511.0679777,0.00037973,5]
[337593758,1725877839069,-150.0,0.00037974,2]
[337593759,1725877839079,-128235.423575,0.00037979,4]
[337593760,1725877839088,-2542.47783693,0.00037979,4]
[337593761,1725877839097,-2542.47783693,0.0003798,4]
[337593762,1725877839107,-5084.95567386,0.0003799,4]
[337593763,1725877839119,-78406.62488908,0.00038,10]
[337593765,1725877840278,-14879.76058995,0.00038,10]
[337593766,1725877840288,-153.3598681,0.00038002,2]
[337593767,1725877840298,-153.3598681,0.00038039,2]
[337593768,1725877840307,-5084.95567386,0.00038129,4]
[337593769,1725877840317,-410.2544176,0.0003818,120]
[337593770,1725877840327,-410.1493314,0.0003818,120]
[337593771,1725877840337,-410.3982993,0.0003818,120]
[337593772,1725877840349,-820.0496949,0.0003818,120]
[337593773,1725877840359,-410.1493314,0.0003818,120]
[337593775,1725877840370,-691.0753631,0.0003818,120]
[337593776,1725877840380,-410.1493314,0.0003818,120]
[337593777,1725877840389,-1575.74512155,0.00038217,2]
[337593778,1725877840398,-716.72600461,0.00038246,2]
[337593779,1725877840407,-169.59,0.00038256,7]
[337593781,1725877840418,-170.81,0.00038256,7]
[337593783,1725877840428,-150.112233,0.000383,10]
[337593785,1725877840437,-150.112233,0.000383,9]
[337593787,1725877840447,-150.112233,0.000383,9]
[337593789,1725877840456,-150.112233,0.000383,10]
[337593791,1725877840465,-150.112233,0.000383,6]
[337593793,1725877840475,-150.112233,0.000383,8]
[337593795,1725877840484,-183.413771,0.000383,7]
[337593797,1725877840493,-12712.3891847,0.00038336,4]
[337593799,1725877840503,-7711.11231979,0.00038346,4]
[337593815,1725878057544,151.0,0.0003,120]
[337593818,1725878197096,350.0,0.0003,3]
[337593825,1725878407037,465.33700971,0.00027422,2]
[337593826,1725878408239,465.01685049,0.00028793,2]
[337593827,1725878454928,1504.47,0.0003,2]
[337593831,1725878525276,374.30457139,0.0002411,2]
[337593832,1725878542701,170.12126458,0.00025096,120]
[337593840,1725878625936,295.87483387,0.0003,14]
[337593863,1725878734149,-465.00084252,0.00030233,2]
[337593864,1725878734172,-152.76648235,0.00032534,30]
[337593868,1725878810104,-12.36762875,0.00032534,30]
[337593869,1725878810126,-534.23358453,0.00034356,120]
[337593870,1725878951133,-5477.8468401,0.00035445,2]
[337593871,1725878951165,-308.5388931,0.00035684,2]
[337593872,1725878951196,-160.791975,0.00035851,2]
[337593873,1725878951228,-264.6067607,0.00035867,2]
[337593874,1725878951262,-109.90560632,0.00036021,2]
[337593875,1725878961110,-50.88636868,0.00036021,2]
[337593876,1725878961135,-160.791975,0.00036191,2]
[337593877,1725878961157,-160.791975,0.00036361,2]
[337593878,1725878961179,-160.791975,0.00036531,2]
[337593879,1725878961203,-160.791975,0.000367,2]
[337593889,1725879032546,-160.791975,0.0003687,2]
[337593890,1725879032557,-160.791975,0.0003704,2]
[337593891,1725879032566,-160.791975,0.0003721,2]
[337593892,1725879032576,-160.791975,0.0003738,2]
[337593893,1725879032585,-153.0,0.00037397,2]
[337593894,1725879032595,-160.791975,0.0003755,2]
[337593895,1725879032604,-415.427344,0.00037589,2]
[337593896,1725879032613,-160.791975,0.00037719,2]
[337593897,1725879032625,-150.112233,0.00038,7]
[337593898,1725879032635,-150.112233,0.00038,8]
[337593899,1725879032644,-153.0,0.00038082,2]
[337593901,1725879032654,-168.34332267,0.00038136,2]
[337593902,1725879032664,-1214.29784181,0.00038146,2]
[337593903,1725879032673,-227.05082403,0.00038146,2]
[337593904,1725879032684,-320.18,0.00038236,3]
[337593905,1725879032694,-91.99796584,0.00038236,3]
[337593906,1725879032707,-68.09203416,0.00038236,3]
[337593907,1725879032717,-480.32,0.00038236,3]
[337593908,1725879032727,-7308.03498741,0.00038245,2]
[337593913,1725879038517,-500.0,0.00038244,15]
[337593914,1725879038527,-500.0,0.00038244,7]
[337593915,1725879038537,-500.0,0.00038244,7]
[337593916,1725879038547,-205.0,0.00038244,15]
[337593917,1725879038556,-500.0,0.00038244,7]
[337593918,1725879038566,-500.0,0.00038244,7]
[337593919,1725879038575,-500.0,0.00038244,7]
[337593920,1725879038585,-500.0,0.00038244,7]
[337593921,1725879038595,-638.20741358,0.00038244,7]
[337593922,1725879038605,-500.0,0.00038244,7]
[337593923,1725879038615,-500.0,0.00038244,7]
[337593924,1725879038625,-500.0,0.00038244,7]
[337593925,1725879038638,-149169.02732259,0.00038245,2]
[337593926,1725879038648,-161.71968738,0.00038245,15]
[337593927,1725879038658,-500.0,0.00038245,15]
[337593928,1725879038669,-500.0,0.00038245,15]
[337593929,1725879038679,-235.50055856,0.00038245,15]
[337593930,1725879038689,-564.02017674,0.00038245,15]
[337593931,1725879038702,-500.0,0.00038245,15]
[337593932,1725879038713,-500.0,0.00038245,15]
[337593933,1725879038724,-500.0,0.00038245,15]
[337593934,1725879038734,-500.0,0.00038245,15]
[337593935,1725879038745,-434.14208371,0.00038245,15]
[337593936,1725879038755,-442.0,0.00038246,2]
[337593937,1725879038765,-1000.0,0.00038246,2]
[337593938,1725879038774,-168266.28980179,0.00038246,2]
[337593939,1725879038783,-721.16425612,0.00038246,2]
[337593940,1725879038793,-10685.75432924,0.00038246,2]
[337593941,1725879038802,-40863.49174787,0.00038256,5]
[337593942,1725879038812,-150.112233,0.000383,7]
[337593943,1725879038822,-150.112233,0.000383,7]
[337593944,1725879038831,-150.112233,0.000383,6]
[337593945,1725879038840,-160523.51262426,0.00038336,4]
[337593946,1725879038853,-184213.11516381,0.00038336,4]
[337593965,1725879043563,-60.73346814,0.00038336,4]
[337593980,1725879046686,-5161.0,0.00038336,4]
[337593981,1725879046727,-31.65021758,0.00038336,4]
[337594001,1725879506671,1500.0,0.00027,2]
[337594002,1725879507108,1500.0,0.00027934,2]
[337594003,1725879507515,1500.0,0.00028868,2]
[337594004,1725879507884,1500.0,0.00029803,2]
[337594005,1725879576914,165.65060423,0.0003,3]
[337594016,1725880170121,-292.5319703,0.00036559,2]
[337594017,1725880170145,-153.0,0.00036559,2]
[337594025,1725880195880,320.0,0.0003002,2]
[337594026,1725880214652,153.0,0.00036559,2]
[337594054,1725880232807,-310.746,0.00036986,2]
[337594118,1725880238678,-689.254,0.00036986,2]
[337594119,1725880238688,-2007.56551978,0.00037418,2]
[337594121,1725880238698,-150.0,0.00037772,2]
[337594123,1725880238714,-2229.16678671,0.0003779,2]
[337594125,1725880238725,-2229.16678671,0.00037792,2]
[337594127,1725880238735,-2229.16678671,0.00037795,2]
[337594129,1725880238747,-2229.16678671,0.00037797,2]
[337594131,1725880238758,-2229.16678671,0.00037799,2]
[337594133,1725880238769,-150.0,0.00037817,2]
[337594135,1725880238778,-214.81,0.0003787,3]
[337594136,1725880238788,-644.43,0.0003787,3]
[337594138,1725880238799,-298.0,0.00037879,2]
[337594140,1725880238808,-304.14122134,0.00037879,15]
[337594142,1725880238819,-161.71968738,0.00037879,15]
[337594144,1725880238828,-500.0,0.00037879,15]
[337594145,1725880238838,-500.0,0.00037879,15]
[337594146,1725880238849,-426.86541436,0.00037879,15]
[337594147,1725880238859,-500.0,0.00037879,15]
[337594148,1725880238868,-500.0,0.00037879,15]
[337594149,1725880238878,-297.09291352,0.00037879,15]
[337594150,1725880238888,-500.0,0.00037879,15]
[337594151,1725880238898,-500.0,0.00037879,15]
[337594152,1725880238908,-500.0,0.00037879,15]
[337594153,1725880238918,-500.0,0.00037879,15]
[337594154,1725880238928,-500.0,0.00037879,15]
[337594155,1725880238938,-500.0,0.00037879,15]
[337594156,1725880238948,-500.0,0.00037879,15]
[337594157,1725880238960,-500.0,0.00037879,7]
[337594158,1725880238969,-500.0,0.00037879,15]
[337594159,1725880238980,-500.0,0.00037879,7]
[337594160,1725880238990,-500.0,0.00037879,15]
[337594161,1725880239000,-500.0,0.00037879,15]
[337594162,1725880239010,-500.0,0.00037879,7]
[337594163,1725880239020,-500.0,0.00037879,15]
[337594164,1725880239031,-500.0,0.00037879,7]
[337594165,1725880239041,-282.0,0.00037879,15]
[337594166,1725880239050,-500.0,0.00037879,15]
[337594167,1725880239060,-500.0,0.00037879,7]
[337594168,1725880239070,-500.0,0.00037879,15]
[337594169,1725880239081,-500.0,0.00037879,7]
[337594170,1725880239091,-500.0,0.00037879,7]
[337594171,1725880239103,-500.0,0.00037879,15]
[337594172,1725880239113,-500.0,0.00037879,7]
[337594173,1725880239124,-500.0,0.00037879,15]
[337594174,1725880239136,-500.0,0.00037879,7]
[337594175,1725880239146,-500.0,0.00037879,15]
[337594176,1725880239158,-500.0,0.00037879,15]
[337594177,1725880239167,-500.0,0.00037879,15]
[337594178,1725880239176,-500.0,0.00037879,7]
[337594179,1725880239187,-500.0,0.00037879,15]
[337594180,1725880239196,-500.0,0.00037879,7]
[337594181,1725880239206,-500.0,0.00037879,7]
[337594182,1725880239215,-500.0,0.00037879,7]
[337594183,1725880239226,-500.0,0.00037879,7]
[337594184,1725880239239,-500.0,0.00037879,7]
[337594185,1725880239253,-605.60427831,0.00037879,7]
[337594186,1725880239263,-500.0,0.00037879,7]
[337594187,1725880239273,-500.0,0.00037879,15]
[337594188,1725880239285,-500.0,0.00037879,7]
[337594189,1725880239295,-500.0,0.00037879,15]
[337594190,1725880239304,-500.0,0.00037879,15]
[337594191,1725880239314,-500.0,0.00037879,7]
[337594192,1725880239324,-500.0,0.00037879,15]
[337594193,1725880239336,-500.0,0.00037879,7]
[337594194,1725880239348,-500.0,0.00037879,15]
[337594195,1725880239359,-500.0,0.00037879,15]
[337594196,1725880239369,-500.0,0.00037879,7]
[337594197,1725880239379,-500.0,0.00037879,15]
[337594198,1725880239391,-514.84334993,0.00037879,15]
[337594199,1725880239402,-500.0,0.00037879,7]
[337594200,1725880239412,-500.0,0.00037879,15]
[337594201,1725880239421,-500.0,0.00037879,7]
[337594202,1725880239431,-221.0,0.0003788,2]
[337594203,1725880239442,-405813.478932,0.0003788,4]
[337594204,1725880239452,-420926.451337,0.0003789,4]
[337594205,1725880239462,-168266.28980179,0.000379,2]